[Event "Late-Titled-Tuesday-Blitz-October-17-2023"]
[Site "Chess.com"]
[Date "2023.10.17"]
[Round "7"]
[White "sjoerd893"]
[Black "effefe"]
[Result "1-0"]
[WhiteElo "2534"]
[BlackElo "2348"]
[TimeControl "180+1"]
[EndTime "15:15:57 PDT"]
[Termination "sjoerd893 won by checkmate"]

1. e4 {[%clk 0:03:00.9]} 1... c5 {[%clk 0:02:58.3]} 2. Nf3 {[%clk 0:03:00.2]}
2... d6 {[%clk 0:02:57.7]} 3. Bb5+ {[%clk 0:02:58.8]} 3... Nd7 {[%clk
0:02:57.1]} 4. d4 {[%clk 0:02:58]} 4... cxd4 {[%clk 0:02:56.6]} 5. Qxd4 {[%clk
0:02:58.9]} 5... a6 {[%clk 0:02:56.2]} 6. Bxd7+ {[%clk 0:02:58.6]} 6... Bxd7
{[%clk 0:02:56.3]} 7. Nc3 {[%clk 0:02:57.8]} 7... Nf6 {[%clk 0:02:55.7]} 8. Bg5
{[%clk 0:02:56.7]} 8... Bc6 {[%clk 0:02:46.6]} 9. Bxf6 {[%clk 0:02:54.5]} 9...
gxf6 {[%clk 0:02:46]} 10. O-O-O {[%clk 0:02:50.3]} 10... Qa5 {[%clk 0:02:35.4]}
11. Kb1 {[%clk 0:02:42.8]} 11... Rg8 {[%clk 0:02:26.7]} 12. g3 {[%clk
0:02:27.6]} 12... f5 {[%clk 0:02:10.9]} 13. Nd5 {[%clk 0:01:54.3]} 13... fxe4
{[%clk 0:01:34.9]} 14. Qxe4 {[%clk 0:01:42.7]} 14... Bxd5 {[%clk 0:00:45.2]} 15.
Rxd5 {[%clk 0:01:32.1]} 15... Qb6 {[%clk 0:00:42.2]} 16. Qxh7 {[%clk 0:01:19.6]}
16... Rg6 {[%clk 0:00:26.9]} 17. Nh4 {[%clk 0:00:28.8]} 17... Rf6 {[%clk
0:00:18.8]} 18. f4 {[%clk 0:00:25.4]} 18... O-O-O {[%clk 0:00:17.2]} 19. Rhd1
{[%clk 0:00:21.3]} 19... Kb8 {[%clk 0:00:16.1]} 20. Qd3 {[%clk 0:00:20.5]} 20...
Rc8 {[%clk 0:00:15.7]} 21. Qb3 {[%clk 0:00:19.4]} 21... Qc6 {[%clk 0:00:13.1]}
22. Nf3 {[%clk 0:00:18.3]} 22... Bg7 {[%clk 0:00:11.9]} 23. Nd4 {[%clk
0:00:17.1]} 23... Qc7 {[%clk 0:00:10.1]} 24. Nf5 {[%clk 0:00:10.9]} 24... Bf8
{[%clk 0:00:03.2]} 25. Ne3 {[%clk 0:00:11.1]} 25... Re6 {[%clk 0:00:03.3]} 26.
R5d3 {[%clk 0:00:11.2]} 26... Bg7 {[%clk 0:00:03.1]} 27. c3 {[%clk 0:00:10.8]}
27... Ka8 {[%clk 0:00:03]} 28. Nd5 {[%clk 0:00:10.9]} 28... Qd7 {[%clk
0:00:02.8]} 29. Nb6+ {[%clk 0:00:11.2]} 29... Ka7 {[%clk 0:00:03.1]} 30. Nxd7
{[%clk 0:00:12.1]} 30... Rc7 {[%clk 0:00:03.3]} 31. Qb6+ {[%clk 0:00:11.3]}
31... Ka8 {[%clk 0:00:03.7]} 32. Qxc7 {[%clk 0:00:12]} 32... Rh6 {[%clk
0:00:02.2]} 33. Qb8# {[%clk 0:00:12.4]} 1-0

[Event "Late-Titled-Tuesday-Blitz-October-17-2023"]
[Site "Chess.com"]
[Date "2023.10.17"]
[Round "7"]
[White "tptagain"]
[Black "KaydenTroffChess"]
[Result "1-0"]
[WhiteElo "2920"]
[BlackElo "2828"]
[TimeControl "180+1"]
[EndTime "15:16:05 PDT"]
[Termination "tptagain won by resignation"]

1. d4 {[%clk 0:03:00.9]} 1... Nf6 {[%clk 0:02:59.1]} 2. Nf3 {[%clk 0:03:01.5]}
2... g6 {[%clk 0:02:59.5]} 3. Bg5 {[%clk 0:03:00.9]} 3... Bg7 {[%clk 0:02:58.9]}
4. Nbd2 {[%clk 0:03:01.4]} 4... d5 {[%clk 0:02:58.8]} 5. e3 {[%clk 0:03:01.4]}
5... O-O {[%clk 0:02:58.9]} 6. Be2 {[%clk 0:03:01.3]} 6... Nbd7 {[%clk
0:02:57.5]} 7. O-O {[%clk 0:03:00.1]} 7... Re8 {[%clk 0:02:57.7]} 8. c4 {[%clk
0:02:49.7]} 8... c5 {[%clk 0:02:54.1]} 9. Re1 {[%clk 0:02:37]} 9... cxd4 {[%clk
0:02:39.2]} 10. exd4 {[%clk 0:02:37.3]} 10... e5 {[%clk 0:02:14.8]} 11. dxe5
{[%clk 0:02:16.7]} 11... Nxe5 {[%clk 0:02:14.8]} 12. Nxe5 {[%clk 0:02:12.9]}
12... Rxe5 {[%clk 0:02:14.7]} 13. Nf3 {[%clk 0:02:13]} 13... Re8 {[%clk
0:02:06.1]} 14. Qb3 {[%clk 0:01:51.8]} 14... Be6 {[%clk 0:01:57.4]} 15. Qxb7
{[%clk 0:01:50]} 15... dxc4 {[%clk 0:01:55]} 16. Qa6 {[%clk 0:01:25.1]} 16...
Qc8 {[%clk 0:01:49.6]} 17. Qa3 {[%clk 0:00:54.2]} 17... Ne4 {[%clk 0:01:34.6]}
18. Be3 {[%clk 0:00:48.3]} 18... Qb7 {[%clk 0:01:32.4]} 19. Bd4 {[%clk
0:00:46.4]} 19... Bd5 {[%clk 0:01:25]} 20. Bxg7 {[%clk 0:00:44.6]} 20... Kxg7
{[%clk 0:01:25.9]} 21. Rad1 {[%clk 0:00:44.3]} 21... Rad8 {[%clk 0:01:23.7]} 22.
Bf1 {[%clk 0:00:41.6]} 22... Nf6 {[%clk 0:01:16.9]} 23. Rxe8 {[%clk 0:00:35.3]}
23... Rxe8 {[%clk 0:01:15.7]} 24. Nd4 {[%clk 0:00:35.3]} 24... Kg8 {[%clk
0:01:10.6]} 25. Nc2 {[%clk 0:00:32.8]} 25... Rb8 {[%clk 0:00:37.3]} 26. Ne3
{[%clk 0:00:31.6]} 26... Be6 {[%clk 0:00:37.1]} 27. Nxc4 {[%clk 0:00:21.8]}
27... Bxc4 {[%clk 0:00:31.6]} 28. Bxc4 {[%clk 0:00:22.7]} 28... Qxb2 {[%clk
0:00:12.2]} 29. Rd8+ {[%clk 0:00:20]} 29... Rxd8 {[%clk 0:00:06.5]} 30. Qxb2
{[%clk 0:00:19.8]} 30... Ne4 {[%clk 0:00:06.6]} 31. g3 {[%clk 0:00:13.7]} 31...
Kf8 {[%clk 0:00:05.1]} 32. Qh8+ {[%clk 0:00:10.2]} 32... Ke7 {[%clk 0:00:05.3]}
33. Qe5+ {[%clk 0:00:10.8]} 33... Kf8 {[%clk 0:00:05.5]} 34. Qxe4 {[%clk
0:00:11.1]} 1-0

[Event "Late-Titled-Tuesday-Blitz-October-17-2023"]
[Site "Chess.com"]
[Date "2023.10.17"]
[Round "7"]
[White "Chessbard1972"]
[Black "topin8"]
[Result "0-1"]
[WhiteElo "2332"]
[BlackElo "2485"]
[TimeControl "180+1"]
[EndTime "15:16:05 PDT"]
[Termination "topin8 won by resignation"]

1. d4 {[%clk 0:02:57.6]} 1... Nf6 {[%clk 0:02:59.6]} 2. Nf3 {[%clk 0:02:56.5]}
2... d5 {[%clk 0:02:54.9]} 3. c4 {[%clk 0:02:57.4]} 3... c6 {[%clk 0:02:55]} 4.
Nc3 {[%clk 0:02:56.9]} 4... g6 {[%clk 0:02:48.7]} 5. Bg5 {[%clk 0:02:53.3]} 5...
Bg7 {[%clk 0:02:47.7]} 6. e3 {[%clk 0:02:53.7]} 6... O-O {[%clk 0:02:47]} 7. Qc2
{[%clk 0:02:52.8]} 7... Bf5 {[%clk 0:02:45.9]} 8. Bd3 {[%clk 0:02:50.7]} 8... e6
{[%clk 0:02:16.3]} 9. cxd5 {[%clk 0:02:23.7]} 9... cxd5 {[%clk 0:02:15.5]} 10.
Bxf5 {[%clk 0:02:22]} 10... gxf5 {[%clk 0:02:14.2]} 11. O-O {[%clk 0:02:21.4]}
11... Nc6 {[%clk 0:01:57.2]} 12. a3 {[%clk 0:02:19.4]} 12... Rc8 {[%clk
0:01:55.8]} 13. Qe2 {[%clk 0:02:18.8]} 13... Qd7 {[%clk 0:01:44]} 14. Rfc1
{[%clk 0:02:13.5]} 14... Ne4 {[%clk 0:01:33.4]} 15. Bh4 {[%clk 0:02:09]} 15...
Na5 {[%clk 0:01:30.2]} 16. Nxe4 {[%clk 0:01:52.4]} 16... dxe4 {[%clk 0:01:25.8]}
17. Nd2 {[%clk 0:01:52.2]} 17... e5 {[%clk 0:01:06.2]} 18. b4 {[%clk 0:01:44.5]}
18... Nc6 {[%clk 0:01:02.9]} 19. dxe5 {[%clk 0:01:41.1]} 19... Nxe5 {[%clk
0:01:01.4]} 20. Rxc8 {[%clk 0:01:32.6]} 20... Rxc8 {[%clk 0:01:00.8]} 21. Rd1
{[%clk 0:01:26.7]} 21... Rc2 {[%clk 0:00:42.1]} 22. Qe1 {[%clk 0:01:10.3]} 22...
Nd3 {[%clk 0:00:37.7]} 23. Qf1 {[%clk 0:01:10.1]} 23... Nb2 {[%clk 0:00:33.3]}
24. Rc1 {[%clk 0:00:58.6]} 24... Qxd2 {[%clk 0:00:31.9]} 25. Rxc2 {[%clk
0:00:58.1]} 25... Qxc2 {[%clk 0:00:32.8]} 26. h3 {[%clk 0:00:55.2]} 26... Qd1
{[%clk 0:00:31.5]} 27. Qxd1 {[%clk 0:00:53.6]} 27... Nxd1 {[%clk 0:00:32.4]} 28.
Be7 {[%clk 0:00:52.6]} 28... b5 {[%clk 0:00:31]} 29. Bc5 {[%clk 0:00:46.5]}
29... a6 {[%clk 0:00:30.9]} 30. Kf1 {[%clk 0:00:42]} 30... Nb2 {[%clk
0:00:29.5]} 31. Ke1 {[%clk 0:00:37.2]} 31... Nc4 {[%clk 0:00:28.9]} 32. Ke2
{[%clk 0:00:36.7]} 32... Nxa3 {[%clk 0:00:28.9]} 33. f3 {[%clk 0:00:36.8]} 33...
Nc4 {[%clk 0:00:29.4]} 34. g4 {[%clk 0:00:35.9]} 34... exf3+ {[%clk 0:00:29.7]}
35. Kxf3 {[%clk 0:00:35.8]} 35... fxg4+ {[%clk 0:00:30.6]} 36. hxg4 {[%clk
0:00:35.6]} 36... Bf8 {[%clk 0:00:31.1]} 37. Ke4 {[%clk 0:00:31.1]} 37... a5
{[%clk 0:00:24.1]} 38. Kd5 {[%clk 0:00:23.7]} 38... axb4 {[%clk 0:00:22.7]} 39.
e4 {[%clk 0:00:21.1]} 39... Bxc5 {[%clk 0:00:21.6]} 40. Kxc5 {[%clk 0:00:20.8]}
40... b3 {[%clk 0:00:22.5]} 0-1

[Event "Late-Titled-Tuesday-Blitz-October-17-2023"]
[Site "Chess.com"]
[Date "2023.10.17"]
[Round "7"]
[White "aNaartjieZA"]
[Black "stefan_95"]
[Result "0-1"]
[WhiteElo "2540"]
[BlackElo "2736"]
[TimeControl "180+1"]
[EndTime "15:16:10 PDT"]
[Termination "stefan_95 won by resignation"]

1. e4 {[%clk 0:03:00.9]} 1... c5 {[%clk 0:03:00]} 2. Nf3 {[%clk 0:03:01.1]} 2...
d6 {[%clk 0:03:00.4]} 3. g3 {[%clk 0:03:01.5]} 3... Nf6 {[%clk 0:03:00.5]} 4. d3
{[%clk 0:03:01.7]} 4... g6 {[%clk 0:03:00.8]} 5. Bg2 {[%clk 0:03:02.1]} 5... Bg7
{[%clk 0:03:01.4]} 6. O-O {[%clk 0:03:02.8]} 6... O-O {[%clk 0:03:01.9]} 7. Re1
{[%clk 0:03:03.2]} 7... Nc6 {[%clk 0:03:02.4]} 8. c3 {[%clk 0:03:03.6]} 8... Rb8
{[%clk 0:03:02.2]} 9. a4 {[%clk 0:03:03.5]} 9... a6 {[%clk 0:03:02.3]} 10. h3
{[%clk 0:03:03.9]} 10... b5 {[%clk 0:03:02.1]} 11. axb5 {[%clk 0:03:04.3]} 11...
axb5 {[%clk 0:03:03]} 12. d4 {[%clk 0:03:04.8]} 12... Nd7 {[%clk 0:03:02.3]} 13.
Be3 {[%clk 0:03:02.4]} 13... b4 {[%clk 0:03:02.2]} 14. Nbd2 {[%clk 0:03:01.4]}
14... bxc3 {[%clk 0:03:02]} 15. bxc3 {[%clk 0:03:01.8]} 15... cxd4 {[%clk
0:02:44.4]} 16. cxd4 {[%clk 0:03:02.7]} 16... Nb6 {[%clk 0:02:44.4]} 17. Rb1
{[%clk 0:02:58.8]} 17... d5 {[%clk 0:02:42]} 18. Bf4 {[%clk 0:02:47.1]} 18...
Ra8 {[%clk 0:02:33.7]} 19. exd5 {[%clk 0:02:45.6]} 19... Nxd5 {[%clk 0:02:31.6]}
20. Qc2 {[%clk 0:02:34.7]} 20... Ncb4 {[%clk 0:02:11.8]} 21. Qb3 {[%clk
0:01:57.5]} 21... Bf5 {[%clk 0:02:09.9]} 22. Ra1 {[%clk 0:01:55.4]} 22... Rxa1
{[%clk 0:01:48.7]} 23. Rxa1 {[%clk 0:01:54.9]} 23... Nxf4 {[%clk 0:01:49]} 24.
Qxb4 {[%clk 0:01:51.1]} 24... Ne2+ {[%clk 0:01:41.1]} 25. Kh2 {[%clk 0:01:38.2]}
25... Nxd4 {[%clk 0:01:42]} 26. Re1 {[%clk 0:01:25.6]} 26... Nc2 {[%clk
0:01:39.4]} 27. Qxe7 {[%clk 0:01:25.5]} 27... Nxe1 {[%clk 0:01:38.7]} 28. Qxe1
{[%clk 0:01:24.6]} 28... Re8 {[%clk 0:01:37.7]} 29. Qf1 {[%clk 0:01:20.5]} 29...
Qd3 {[%clk 0:01:32]} 30. Qxd3 {[%clk 0:01:19.8]} 30... Bxd3 {[%clk 0:01:32.9]}
31. Bf1 {[%clk 0:01:13.8]} 31... Bxf1 {[%clk 0:01:25.5]} 32. Nxf1 {[%clk
0:01:13.5]} 32... Re2 {[%clk 0:01:26.1]} 33. Kg2 {[%clk 0:01:13.4]} 33... Bf8
{[%clk 0:01:24.7]} 34. Nd4 {[%clk 0:01:11.9]} 34... Rb2 {[%clk 0:01:24.5]} 35.
Nf3 {[%clk 0:01:06.5]} 35... Bc5 {[%clk 0:01:23.6]} 36. N3d2 {[%clk 0:01:06.3]}
36... f5 {[%clk 0:01:20.6]} 37. Kf3 {[%clk 0:01:06.2]} 37... Kf7 {[%clk
0:01:20.6]} 38. h4 {[%clk 0:01:06]} 38... Ke6 {[%clk 0:01:19.5]} 39. Ke2 {[%clk
0:01:02.6]} 39... Bb4 {[%clk 0:01:16.8]} 40. Kd3 {[%clk 0:01:02.2]} 40... Bxd2
{[%clk 0:01:13.4]} 41. Nxd2 {[%clk 0:01:02.4]} 41... Kd5 {[%clk 0:01:12.7]} 42.
Ke3 {[%clk 0:01:02.6]} 42... Ra2 {[%clk 0:01:09]} 43. Nf3 {[%clk 0:01:02.6]}
43... Ra3+ {[%clk 0:01:08.7]} 44. Ke2 {[%clk 0:01:02.9]} 44... h6 {[%clk
0:01:07.7]} 45. Nd2 {[%clk 0:01:00.7]} 45... f4 {[%clk 0:00:58.9]} 46. g4 {[%clk
0:00:42]} 46... Rh3 {[%clk 0:00:46.4]} 47. Nf3 {[%clk 0:00:40.9]} 47... Ke4
{[%clk 0:00:37.2]} 48. Nd2+ {[%clk 0:00:40.5]} 48... Ke5 {[%clk 0:00:37.5]} 49.
Nf3+ {[%clk 0:00:40.2]} 49... Kd5 {[%clk 0:00:31.6]} 50. g5 {[%clk 0:00:35.9]}
50... h5 {[%clk 0:00:30.8]} 51. Ng1 {[%clk 0:00:31.9]} 51... Rxh4 {[%clk
0:00:30]} 52. Kf3 {[%clk 0:00:31.9]} 52... Rg4 {[%clk 0:00:28]} 53. Ne2 {[%clk
0:00:30.4]} 53... Ke5 {[%clk 0:00:27.1]} 0-1

[Event "Late-Titled-Tuesday-Blitz-October-17-2023"]
[Site "Chess.com"]
[Date "2023.10.17"]
[Round "7"]
[White "Inepton_Fermion"]
[Black "nitpicker"]
[Result "1-0"]
[WhiteElo "2384"]
[BlackElo "2234"]
[TimeControl "180+1"]
[EndTime "15:16:11 PDT"]
[Termination "Inepton_Fermion won by checkmate"]

1. Nf3 {[%clk 0:02:27.3]} 1... Nf6 {[%clk 0:02:58.5]} 2. b3 {[%clk 0:02:27.5]}
2... d6 {[%clk 0:02:56.5]} 3. d4 {[%clk 0:02:27.2]} 3... g6 {[%clk 0:02:53.1]}
4. Bb2 {[%clk 0:02:27.2]} 4... Bg7 {[%clk 0:02:53.6]} 5. g3 {[%clk 0:02:27.4]}
5... O-O {[%clk 0:02:53.4]} 6. Bg2 {[%clk 0:02:27.8]} 6... a5 {[%clk 0:02:49.9]}
7. O-O {[%clk 0:02:24.6]} 7... a4 {[%clk 0:02:48.3]} 8. c4 {[%clk 0:02:25]} 8...
axb3 {[%clk 0:02:47.4]} 9. axb3 {[%clk 0:02:25.9]} 9... Rxa1 {[%clk 0:02:46.5]}
10. Bxa1 {[%clk 0:02:26.8]} 10... c6 {[%clk 0:02:40]} 11. Nbd2 {[%clk
0:02:26.7]} 11... Bf5 {[%clk 0:02:27.3]} 12. Bc3 {[%clk 0:02:24]} 12... Na6
{[%clk 0:02:17.5]} 13. Nh4 {[%clk 0:02:23.6]} 13... Bg4 {[%clk 0:02:13.6]} 14.
h3 {[%clk 0:02:22]} 14... Be6 {[%clk 0:02:12.4]} 15. e4 {[%clk 0:02:19.1]} 15...
d5 {[%clk 0:02:03]} 16. e5 {[%clk 0:01:46.3]} 16... Nd7 {[%clk 0:01:39]} 17. c5
{[%clk 0:01:45.6]} 17... b6 {[%clk 0:01:33.9]} 18. b4 {[%clk 0:01:45.3]} 18...
bxc5 {[%clk 0:01:33.3]} 19. bxc5 {[%clk 0:01:45.6]} 19... f6 {[%clk 0:01:27.8]}
20. f4 {[%clk 0:01:45.2]} 20... Nc7 {[%clk 0:01:14.5]} 21. Nhf3 {[%clk
0:01:36.3]} 21... Nb5 {[%clk 0:01:13.5]} 22. Bb4 {[%clk 0:01:29.9]} 22... Kh8
{[%clk 0:01:06.5]} 23. Nb3 {[%clk 0:01:26.9]} 23... fxe5 {[%clk 0:00:58.5]} 24.
fxe5 {[%clk 0:01:24.7]} 24... Bh6 {[%clk 0:00:57.7]} 25. Bd2 {[%clk 0:01:16.9]}
25... Bxd2 {[%clk 0:00:49.7]} 26. Qxd2 {[%clk 0:01:17.8]} 26... Kg7 {[%clk
0:00:46.2]} 27. Kh2 {[%clk 0:01:07.8]} 27... h6 {[%clk 0:00:39.1]} 28. Ra1
{[%clk 0:01:01.9]} 28... Qb8 {[%clk 0:00:34.4]} 29. Qb4 {[%clk 0:00:39.7]} 29...
Rf5 {[%clk 0:00:24.7]} 30. Na5 {[%clk 0:00:32.2]} 30... Qc7 {[%clk 0:00:22.2]}
31. Rb1 {[%clk 0:00:29.2]} 31... g5 {[%clk 0:00:16]} 32. Nxc6 {[%clk 0:00:25.8]}
32... Qxc6 {[%clk 0:00:16.6]} 33. Qxb5 {[%clk 0:00:26.1]} 33... Qxb5 {[%clk
0:00:15.3]} 34. Rxb5 {[%clk 0:00:27]} 34... Rf8 {[%clk 0:00:13.7]} 35. Rb7
{[%clk 0:00:19.8]} 35... Rc8 {[%clk 0:00:11.5]} 36. Nd2 {[%clk 0:00:15.3]} 36...
Kf7 {[%clk 0:00:11.6]} 37. Nb1 {[%clk 0:00:14.7]} 37... Rc6 {[%clk 0:00:11.7]}
38. Nc3 {[%clk 0:00:14.9]} 38... Ra6 {[%clk 0:00:11.9]} 39. Nxd5 {[%clk
0:00:12.2]} 39... Bxd5 {[%clk 0:00:08.6]} 40. Bxd5+ {[%clk 0:00:11.4]} 40... Ke8
{[%clk 0:00:07.7]} 41. e6 {[%clk 0:00:10.7]} 41... Nf6 {[%clk 0:00:05.7]} 42.
Rb8# {[%clk 0:00:10.8]} 1-0

[Event "Late-Titled-Tuesday-Blitz-October-17-2023"]
[Site "Chess.com"]
[Date "2023.10.17"]
[Round "7"]
[White "egnfanclub"]
[Black "VdovinDmitry"]
[Result "1-0"]
[WhiteElo "2348"]
[BlackElo "2078"]
[TimeControl "180+1"]
[EndTime "15:16:13 PDT"]
[Termination "egnfanclub won on time"]

1. e4 {[%clk 0:03:00.9]} 1... e5 {[%clk 0:02:58.4]} 2. Nf3 {[%clk 0:02:59.6]}
2... Nc6 {[%clk 0:02:58.1]} 3. d4 {[%clk 0:02:59.3]} 3... exd4 {[%clk
0:02:57.3]} 4. Nxd4 {[%clk 0:03:00.2]} 4... Qh4 {[%clk 0:02:57.1]} 5. Nc3 {[%clk
0:02:58.6]} 5... Bb4 {[%clk 0:02:55.5]} 6. Nb5 {[%clk 0:02:57.1]} 6... Nf6
{[%clk 0:02:51.4]} 7. Nxc7+ {[%clk 0:02:50.7]} 7... Kd8 {[%clk 0:02:48.1]} 8.
Nxa8 {[%clk 0:02:50.8]} 8... Nxe4 {[%clk 0:02:46.1]} 9. Qf3 {[%clk 0:02:47.8]}
9... Re8 {[%clk 0:02:40]} 10. Be3 {[%clk 0:02:14.4]} 10... Nxc3 {[%clk
0:02:31.2]} 11. bxc3 {[%clk 0:02:10.3]} 11... Bxc3+ {[%clk 0:02:29.6]} 12. Kd1
{[%clk 0:02:10.3]} 12... Bxa1 {[%clk 0:02:19.6]} 13. Qxf7 {[%clk 0:02:09.9]}
13... Bf6 {[%clk 0:01:51.8]} 14. Be2 {[%clk 0:01:48.7]} 14... Qb4 {[%clk
0:01:48.7]} 15. Qb3 {[%clk 0:01:47]} 15... Qxb3 {[%clk 0:01:48.1]} 16. axb3
{[%clk 0:01:47.9]} 16... b6 {[%clk 0:01:48.1]} 17. Nxb6 {[%clk 0:01:37.5]} 17...
axb6 {[%clk 0:01:46.8]} 18. Bxb6+ {[%clk 0:01:38.4]} 18... Ke7 {[%clk
0:01:46.7]} 19. Bc4 {[%clk 0:01:36.2]} 19... d6 {[%clk 0:01:45]} 20. Re1+ {[%clk
0:01:31.2]} 20... Kd7 {[%clk 0:01:43.6]} 21. Be3 {[%clk 0:01:18.6]} 21... Bb7
{[%clk 0:01:40.5]} 22. Kd2 {[%clk 0:01:11.6]} 22... Ne5 {[%clk 0:01:37]} 23. Bf1
{[%clk 0:01:06.4]} 23... Ra8 {[%clk 0:01:34.7]} 24. h3 {[%clk 0:01:00.7]} 24...
Re8 {[%clk 0:01:27.2]} 25. f4 {[%clk 0:00:55.5]} 25... Nc6 {[%clk 0:01:26.3]}
26. Bd3 {[%clk 0:00:52.3]} 26... g6 {[%clk 0:01:24.8]} 27. g4 {[%clk 0:00:51.4]}
27... Bd4 {[%clk 0:01:24.1]} 28. f5 {[%clk 0:00:49.3]} 28... Bxe3+ {[%clk
0:01:22.8]} 29. Rxe3 {[%clk 0:00:50.2]} 29... Rxe3 {[%clk 0:01:22.1]} 30. Kxe3
{[%clk 0:00:51.1]} 30... gxf5 {[%clk 0:01:22.1]} 31. Bxf5+ {[%clk 0:00:51.2]}
31... Ke7 {[%clk 0:01:17.6]} 32. Bxh7 {[%clk 0:00:51.9]} 32... Kf6 {[%clk
0:01:17.5]} 33. Be4 {[%clk 0:00:51.1]} 33... Nd8 {[%clk 0:01:13]} 34. c4 {[%clk
0:00:42.3]} 34... Bc8 {[%clk 0:01:10.3]} 35. b4 {[%clk 0:00:41.3]} 35... Nf7
{[%clk 0:01:07.6]} 36. b5 {[%clk 0:00:39.2]} 36... Ne5 {[%clk 0:01:06.9]} 37.
Bd5 {[%clk 0:00:37.6]} 37... Nd7 {[%clk 0:01:00.2]} 38. Kf4 {[%clk 0:00:36.3]}
38... Nc5 {[%clk 0:01:00.3]} 39. h4 {[%clk 0:00:31.6]} 39... Bd7 {[%clk
0:00:59.2]} 40. h5 {[%clk 0:00:30]} 40... Nd3+ {[%clk 0:00:59.1]} 41. Ke3 {[%clk
0:00:29.6]} 41... Ne5 {[%clk 0:00:57.4]} 42. b6 {[%clk 0:00:29.6]} 42... Nc6
{[%clk 0:00:52.8]} 43. Kf4 {[%clk 0:00:27.6]} 43... Na5 {[%clk 0:00:27.7]} 44.
b7 {[%clk 0:00:26.4]} 1-0

[Event "Late-Titled-Tuesday-Blitz-October-17-2023"]
[Site "Chess.com"]
[Date "2023.10.17"]
[Round "7"]
[White "Perecke"]
[Black "Casablanca"]
[Result "1/2-1/2"]
[WhiteElo "2528"]
[BlackElo "2736"]
[TimeControl "180+1"]
[EndTime "15:16:14 PDT"]
[Termination "Game drawn by repetition"]

1. e4 {[%clk 0:02:59.8]} 1... c5 {[%clk 0:02:59.8]} 2. Nf3 {[%clk 0:02:59.6]}
2... d6 {[%clk 0:03:00.1]} 3. d4 {[%clk 0:02:59.3]} 3... cxd4 {[%clk 0:03:01]}
4. Nxd4 {[%clk 0:03:00.2]} 4... Nf6 {[%clk 0:03:01.6]} 5. Nc3 {[%clk 0:03:00.4]}
5... g6 {[%clk 0:03:00.9]} 6. Be3 {[%clk 0:02:58.8]} 6... Bg7 {[%clk 0:03:01]}
7. f3 {[%clk 0:02:59.3]} 7... Nc6 {[%clk 0:03:01.1]} 8. Qd2 {[%clk 0:02:59.3]}
8... O-O {[%clk 0:03:01.7]} 9. O-O-O {[%clk 0:02:59.1]} 9... d5 {[%clk
0:02:58.8]} 10. exd5 {[%clk 0:02:59.1]} 10... Nxd5 {[%clk 0:02:57.6]} 11. Nxc6
{[%clk 0:02:58.6]} 11... bxc6 {[%clk 0:02:58.5]} 12. Bd4 {[%clk 0:02:59]} 12...
Bxd4 {[%clk 0:02:58.9]} 13. Qxd4 {[%clk 0:02:59]} 13... Qb6 {[%clk 0:02:59.6]}
14. Na4 {[%clk 0:02:57.4]} 14... Qc7 {[%clk 0:02:58.8]} 15. b3 {[%clk
0:02:46.9]} 15... e5 {[%clk 0:02:43]} 16. Qc5 {[%clk 0:02:44.2]} 16... Be6
{[%clk 0:02:43]} 17. Bc4 {[%clk 0:02:36]} 17... Rfd8 {[%clk 0:02:42.9]} 18. h4
{[%clk 0:02:34.5]} 18... h5 {[%clk 0:02:41.5]} 19. g4 {[%clk 0:02:30.3]} 19...
hxg4 {[%clk 0:02:39.1]} 20. fxg4 {[%clk 0:02:30.2]} 20... e4 {[%clk 0:02:33.4]}
21. Kb1 {[%clk 0:02:07.3]} 21... Nb6 {[%clk 0:02:26.5]} 22. Bxe6 {[%clk
0:01:54.9]} 22... Nxa4 {[%clk 0:02:26.5]} 23. Qc4 {[%clk 0:01:42.7]} 23... fxe6
{[%clk 0:02:18]} 24. Qxa4 {[%clk 0:01:40.9]} 24... Qe5 {[%clk 0:01:51.9]} 25.
Qxc6 {[%clk 0:01:38]} 25... Rac8 {[%clk 0:01:51.1]} 26. Rxd8+ {[%clk 0:01:29.1]}
26... Rxd8 {[%clk 0:01:52]} 27. h5 {[%clk 0:01:26.3]} 27... e3 {[%clk
0:01:48.5]} 28. Qf3 {[%clk 0:01:25.5]} 28... Rf8 {[%clk 0:01:28.8]} 29. Qe2
{[%clk 0:01:22.2]} 29... Rf2 {[%clk 0:01:24.7]} 30. Qd3 {[%clk 0:01:19.9]} 30...
e2 {[%clk 0:01:25]} 31. Qxg6+ {[%clk 0:00:46.2]} 31... Kf8 {[%clk 0:00:55]} 32.
Re1 {[%clk 0:00:38.5]} 32... Rf1 {[%clk 0:00:53.8]} 33. Qh6+ {[%clk 0:00:38.7]}
33... Qg7 {[%clk 0:00:42.8]} 34. Qd2 {[%clk 0:00:31.4]} 34... Qxg4 {[%clk
0:00:41.5]} 35. h6 {[%clk 0:00:24.5]} 35... Qh4 {[%clk 0:00:34.3]} 36. Qd6+
{[%clk 0:00:20.2]} 36... Kf7 {[%clk 0:00:27.9]} 37. Qd7+ {[%clk 0:00:18]} 37...
Qe7 {[%clk 0:00:23.4]} 38. Qd2 {[%clk 0:00:15.5]} 38... Qh4 {[%clk 0:00:13.8]}
39. Qd7+ {[%clk 0:00:15.2]} 39... Qe7 {[%clk 0:00:05.5]} 40. Qd2 {[%clk
0:00:14.7]} 40... Qh4 {[%clk 0:00:04.9]} 41. Qd7+ {[%clk 0:00:14.6]} 1/2-1/2